fUSD/lending_fUSD_20240925
["ID","MTS","AMOUNT","RATE_DAILY","PERIOD"]
[339193991,1727284328886,500.0,0.00021999,120]
[339193992,1727284329130,479.25823109,0.00021999,120]
[339193993,1727284329217,500.0,0.00021999,120]
[339193994,1727284329570,500.0,0.00021999,120]
[339193995,1727284329882,500.0,0.00021999,120]
[339193996,1727284330259,500.0,0.00021999,120]
[339193997,1727284330613,500.0,0.00021999,120]
[339193998,1727284330958,500.0,0.00021999,120]
[339193999,1727284331079,500.0,0.00021999,120]
[339194000,1727284331280,500.0,0.00021999,120]
[339194001,1727284331428,223.84563301,0.00021999,120]
[339194002,1727284331635,500.0,0.00021999,120]
[339194003,1727284331680,500.0,0.00021999,120]
[339194004,1727284332034,500.0,0.00021999,120]
[339194005,1727284332076,500.0,0.00021999,120]
[339194006,1727284332116,500.0,0.00021999,120]
[339194007,1727284332381,500.0,0.00021999,120]
[339194008,1727284332432,500.0,0.00021999,120]
[339194009,1727284332724,500.0,0.00021999,120]
[339194010,1727284332769,500.0,0.00021999,120]
[339194011,1727284333216,284.86321548,0.00021999,120]
[339194012,1727284333386,500.0,0.00021999,120]
[339194013,1727284333705,500.0,0.00021999,120]
[339194014,1727284334023,500.0,0.00021999,120]
[339194015,1727284334366,500.0,0.00021999,120]
[339194016,1727284334583,500.55304463,0.00021999,120]
[339194017,1727284334640,500.0,0.00021999,120]
[339194018,1727284334827,500.0,0.00021999,120]
[339194019,1727284335131,500.0,0.00021999,120]
[339194020,1727284335475,500.0,0.00021999,120]
[339194021,1727284335786,500.0,0.00021999,120]
[339194022,1727284335885,500.0,0.00021999,120]
[339194023,1727284336199,500.0,0.00021999,120]
[339194024,1727284336242,500.0,0.00021999,120]
[339194025,1727284336835,496.95737841,0.00021999,120]
[339194026,1727284336880,500.0,0.00021999,120]
[339194027,1727284336924,500.0,0.00021999,120]
[339194028,1727284336999,500.0,0.00021999,120]
[339194029,1727284337041,188.70839536,0.00021999,120]
[339194030,1727284337312,372.73,0.00021999,120]
[339194031,1727284339850,500.0,0.00021999,120]
[339194032,1727284340072,500.0,0.00021999,120]
[339194033,1727284340203,500.0,0.00021999,120]
[339194034,1727284340391,500.79676478,0.00021999,120]
[339194035,1727284340556,500.0,0.00021999,120]
[339194036,1727284340895,500.0,0.00021999,120]
[339194037,1727284341581,500.0,0.00021999,120]
[339194038,1727284341970,500.0,0.00021999,120]
[339194039,1727284342386,500.0,0.00021999,120]
[339194040,1727284342699,376.42758476,0.00021999,120]
[339194041,1727284343726,500.0,0.00021999,120]
[339194042,1727284344027,500.0,0.00021999,120]
[339194043,1727284344392,500.0,0.00021999,120]
[339194044,1727284344759,500.0,0.00021999,120]
[339194045,1727284345112,500.0,0.00021999,120]
[339194046,1727284345444,262.45499695,0.00021999,120]
[339194047,1727284346150,500.0,0.00021999,120]
[339194048,1727284346531,500.0,0.00021999,120]
[339194049,1727284346939,500.0,0.00021999,120]
[339194050,1727284347364,501.13929951,0.00021999,120]
[339194051,1727284347405,500.54477998,0.00021999,120]
[339194052,1727284347906,500.0,0.00021999,120]
[339194053,1727284348227,500.0,0.00021999,120]
[339194054,1727284348618,500.0,0.00021999,120]
[339194055,1727284348937,323.99104083,0.00021999,120]
[339194056,1727284349575,500.0,0.00021999,120]
[339194057,1727284349886,500.0,0.00021999,120]
[339194058,1727284350182,500.0,0.00021999,120]
[339194059,1727284350399,500.0,0.00021999,120]
[339194060,1727284350474,500.0,0.00021999,120]
[339194061,1727284350767,500.6830987,0.00021999,120]
[339194062,1727284350816,500.0,0.00021999,120]
[339194063,1727284351159,500.0,0.00021999,120]
[339194064,1727284351463,500.0,0.00021999,120]
[339194065,1727284351866,500.0,0.00021999,120]
[339194066,1727284351905,501.27059483,0.00021999,120]
[339194067,1727284352195,500.0,0.00021999,120]
[339194068,1727284352502,156.93,0.00010959,2]
[339194069,1727284352567,500.0,0.00021999,120]
[339194070,1727284352864,500.0,0.00021999,120]
[339194071,1727284353193,500.0,0.00021999,120]
[339194072,1727284353597,500.0,0.00021999,120]
[339194073,1727284353641,500.0,0.00021999,120]
[339194074,1727284354042,500.0,0.00021999,120]
[339194075,1727284354319,500.0,0.00021999,120]
[339194076,1727284354509,500.0,0.00021999,120]
[339194077,1727284354645,500.0,0.00021999,120]
[339194078,1727284354831,500.0,0.00021999,120]
[339194079,1727284354955,500.0,0.00021999,120]
[339194080,1727284355140,500.0,0.00021999,120]
[339194081,1727284355259,500.0,0.00021999,120]
[339194082,1727284355460,500.0,0.00021999,120]
[339194083,1727284355600,279.0,0.00021999,120]
[339194084,1727284355774,500.0,0.00021999,120]
[339194085,1727284356077,500.0,0.00021999,120]
[339194086,1727284356613,204.65057979,0.00021999,120]
[339194087,1727284356664,566.84,0.00021999,120]
[339194088,1727284356713,500.0,0.00021999,120]
[339194089,1727284356889,566.84,0.00021999,120]
[339194090,1727284356934,500.0,0.00021999,120]
[339194091,1727284357278,566.84,0.00021999,120]
[339194092,1727284357483,500.37000208,0.00021999,120]
[339194093,1727284357587,566.84,0.00021999,120]
[339194094,1727284357864,500.0,0.00021999,120]
[339194095,1727284357910,566.84,0.00021999,120]
[339194096,1727284358219,566.84,0.00021999,120]
[339194097,1727284358262,500.0,0.00021999,120]
[339194098,1727284358638,566.84,0.00021999,120]
[339194099,1727284358940,500.0,0.00021999,120]
[339194100,1727284358985,500.0,0.00021999,120]
[339194101,1727284359045,566.84,0.00021999,120]
[339194102,1727284359206,501.12435045,0.00021999,120]
[339194103,1727284359292,500.0,0.00021999,120]
[339194104,1727284359335,595.77015029,0.00021999,120]
[339194105,1727284359375,566.84,0.00021999,120]
[339194106,1727284359651,334.16624602,0.00021999,120]
[339194107,1727284359703,566.84,0.00021999,120]
[339194108,1727284360011,566.84,0.00021999,120]
[339194109,1727284360658,566.84,0.00021999,120]
[339194110,1727284360920,500.34905931,0.00021999,120]
[339194111,1727284360966,566.84,0.00021999,120]
[339194112,1727284361299,566.84,0.00021999,120]
[339194113,1727284361612,566.84,0.00021999,120]
[339194114,1727284361946,566.84,0.00021999,120]
[339194115,1727284362244,566.84,0.00021999,120]
[339194116,1727284362552,566.84,0.00021999,120]
[339194117,1727284362893,500.0,0.00021999,120]
[339194118,1727284362984,566.84,0.00021999,120]
[339194119,1727284363248,500.0,0.00021999,120]
[339194120,1727284363293,566.84,0.00021999,120]
[339194121,1727284363592,566.84,0.00021999,120]
[339194122,1727284363634,500.0,0.00021999,120]
[339194123,1727284363947,501.0420603,0.00021999,120]
[339194124,1727284364226,524.44051612,0.00021999,120]
[339194125,1727284364357,566.84,0.00021999,120]
[339194126,1727284364723,566.84,0.00021999,120]
[339194127,1727284365087,566.94661056,0.00021999,120]
[339194128,1727284365900,500.38804077,0.00021999,120]
[339194129,1727284366460,2068.15,0.00021999,120]
[339194130,1727284366784,2068.15,0.00021999,120]
[339194131,1727284367105,2068.15,0.00021999,120]
[339194132,1727284367433,2068.15,0.00021999,120]
[339194133,1727284367795,2068.15,0.00021999,120]
[339194134,1727284368118,2068.15,0.00021999,120]
[339194135,1727284368472,2068.15,0.00021999,120]
[339194136,1727284368792,2068.15,0.00021999,120]
[339194137,1727284369111,2068.15,0.00021999,120]
[339194138,1727284369446,2068.15,0.00021999,120]
[339194139,1727284369787,2068.15,0.00021999,120]
[339194140,1727284370108,2068.15,0.00021999,120]
[339194141,1727284370310,500.0,0.00021999,120]
[339194142,1727284370432,2068.15,0.00021999,120]
[339194143,1727284370665,500.0,0.00021999,120]
[339194144,1727284370754,2068.15,0.00021999,120]
[339194145,1727284371108,2068.15,0.00021999,120]
[339194146,1727284371428,2068.15,0.00021999,120]
[339194147,1727284371473,521.28443554,0.00021999,120]
[339194148,1727284371756,2068.15,0.00021999,120]
[339194149,1727284372085,2068.15,0.00021999,120]
[339194150,1727284372419,2068.15,0.00021999,120]
[339194151,1727284372790,2068.15,0.00021999,120]
[339194152,1727284372929,643.80613698,0.00021999,120]
[339194153,1727284373117,2068.15,0.00021999,120]
[339194154,1727284373461,2068.15,0.00021999,120]
[339194155,1727284373849,2068.15,0.00021999,120]
[339194156,1727284374190,2068.31923294,0.00021999,120]
[339194157,1727284374690,500.0,0.00021999,120]
[339194158,1727284374745,501.12972352,0.00021999,120]
[339194159,1727284374791,500.0,0.00021999,120]
[339194160,1727284374930,500.0,0.00021999,120]
[339194161,1727284375102,500.0,0.00021999,120]
[339194162,1727284375274,500.0,0.00021999,120]
[339194163,1727284375443,500.0,0.00021999,120]
[339194164,1727284375601,500.0,0.00021999,120]
[339194165,1727284375641,500.0,0.00021999,120]
[339194166,1727284375784,447.52705015,0.00021999,120]
[339194167,1727284375927,500.0,0.00021999,120]
[339194168,1727284375966,500.0,0.00021999,120]
[339194169,1727284376195,126.01092721,0.00021999,120]
[339194170,1727284629905,250.0,0.00010959,2]
[339194171,1727284653000,397.82,9.805e-05,2]
[339194172,1727284792365,156.67,0.00013918,30]
[339194174,1727284879896,178.56,0.00010959,2]
[339194203,1727285272862,408.47,9.602e-05,2]
[339194211,1727285341326,156.67,0.00013918,30]
[339194233,1727285431508,-284.21157374,0.00011358,2]
[339194235,1727285431521,-284.21157372,0.00011382,2]
[339194237,1727285431535,-284.21157372,0.00011405,2]
[339194239,1727285431549,-176.44679914,0.00011409,2]
[339194240,1727285431562,-3178.80665036,0.00011454,2]
[339194241,1727285431579,-1336.34521765,0.00011454,2]
[339194242,1727285431593,-2500.0,0.00011454,2]
[339194243,1727285431626,-928.03605595,0.00011454,2]
[339194244,1727285431654,-805.38324592,0.00011454,2]
[339194245,1727285431669,-4118.27119374,0.00011454,2]
[339194246,1727285431685,-4361.7112716,0.00011454,2]
[339194247,1727285431714,-1376.88879012,0.00011454,2]
[339194248,1727285431788,-468.35778133,0.00011454,2]
[339194249,1727285431804,-4816.19979333,0.00011454,2]
[339194250,1727285431818,-250.0,0.00011458,2]
[339194251,1727285431830,-250.0,0.00011505,2]
[339194252,1727285431841,-178.55,0.00011507,2]
[339194253,1727285431854,-250.0,0.00011509,2]
[339194254,1727285431865,-885.9,0.00011509,2]
[339194255,1727285431876,-150.0,0.00011525,2]
[339194256,1727285431888,-1543.8169718,0.0001164,2]
[339194257,1727285431900,-156.33,0.00011641,2]
[339194258,1727285431912,-437.14,0.00011641,2]
[339194259,1727285431924,-150.0,0.00011653,2]
[339194260,1727285431937,-200.0,0.00011654,2]
[339194261,1727285431948,-150.99,0.00011654,2]
[339194262,1727285431959,-299.99,0.00011654,2]
[339194263,1727285431969,-313.43,0.00011664,2]
[339194264,1727285431986,-170.56,0.00011681,2]
[339194265,1727285431997,-150.0,0.00011688,2]
[339194266,1727285432008,-150.0,0.00011688,2]
[339194267,1727285432020,-150.0,0.00011688,2]
[339194268,1727285432032,-194.63955812,0.00011688,2]
[339194269,1727285432048,-150.0,0.00011688,2]
[339194270,1727285432060,-150.00000001,0.00011688,2]
[339194271,1727285432072,-370.8,0.00011755,2]
[339194272,1727285432085,-150.0,0.00011832,2]
[339194273,1727285432098,-408.47,0.00011866,2]
[339194274,1727285432110,-499.99,0.000119,2]
[339194275,1727285432122,-10378.04,0.000119,2]
[339194276,1727285432133,-700.0,0.000119,4]
[339194277,1727285432144,-150.0,0.00011904,2]
[339194278,1727285432154,-150.0,0.00011976,2]
[339194279,1727285432164,-214.3783,0.00011986,2]
[339194280,1727285432175,-1400.0,0.00012,4]
[339194281,1727285432187,-193.12,0.00012082,2]
[339194282,1727285432199,-2200.0,0.000121,4]
[339194283,1727285432211,-290.46,0.00012111,2]
[339194284,1727285432224,-150.0,0.00012121,2]
[339194285,1727285432237,-150.0,0.00012121,2]
[339194286,1727285432254,-254.1,0.000122,2]
[339194287,1727285432267,-2900.0,0.000122,4]
[339194288,1727285432280,-150.0,0.00012265,2]
[339194289,1727285432292,-3700.0,0.000123,4]
[339194290,1727285432306,-150.0,0.00012337,2]
[339194291,1727285432319,-150.0,0.00012337,2]
[339194292,1727285432332,-1000.0,0.00012398,2]
[339194293,1727285432346,-700.0,0.000124,4]
[339194294,1727285432358,-150.0,0.00012409,2]
[339194295,1727285432371,-178.12,0.00012436,2]
[339194296,1727285432384,-181.94,0.00012445,2]
[339194297,1727285432396,-700.0,0.000125,4]
[339194298,1727285432408,-150.0,0.00012553,2]
[339194299,1727285432422,-150.0,0.00012553,2]
[339194300,1727285432434,-700.0,0.000126,4]
[339194301,1727285432446,-150.0,0.00012698,2]
[339194302,1727285432458,-700.0,0.000127,4]
[339194303,1727285432470,-255.0,0.00012725,2]
[339194304,1727285432481,-311.27857499,0.00012749,2]
[339194305,1727285432493,-150.0,0.0001277,2]
[339194306,1727285432505,-383.35699788,0.00012773,2]
[339194307,1727285432516,-1543.8169718,0.00012778,2]
[339194308,1727285432527,-297.9512,0.000128,2]
[339194309,1727285432538,-1200.0,0.000128,4]
[339194310,1727285432549,-150.0,0.00012842,2]
[339194311,1727285432560,-150.23271,0.0001287,2]
[339194312,1727285432572,-3116.0,0.0001287,2]
[339194313,1727285432582,-500.0,0.00012896,2]
[339194314,1727285432593,-4483.762,0.000129,2]
[339194315,1727285432604,-1000.0,0.000129,2]
[339194316,1727285432615,-3256.7515,0.000129,2]
[339194317,1727285432626,-25172.0817,0.000129,2]
[339194318,1727285432638,-1391.9473,0.000129,2]
[339194319,1727285432648,-1015.2583,0.000129,2]
[339194320,1727285432659,-202.98165562,0.000129,2]
[339194321,1727285432670,-177.97734852,0.000129,2]
[339194322,1727285432681,-1011.3,0.000129,2]
[339194323,1727285432692,-157.27815319,0.000129,2]
[339194324,1727285432703,-5322.04015582,0.000129,2]
[339194325,1727285432714,-318.29041278,0.000129,2]
[339194326,1727285432726,-191.09198548,0.000129,2]
[339194327,1727285432739,-212.39098182,0.000129,2]
[339194328,1727285432752,-471.5284845,0.000129,2]
[339194329,1727285432767,-500.0,0.00012904,2]
[339194330,1727285432778,-408.54775917,0.00012973,2]
[339194331,1727285432789,-160.158,0.00012973,2]
[339194332,1727285432799,-287.84635417,0.00012986,2]
[339194333,1727285432810,-260.60373138,0.00012986,2]
[339194334,1727285432822,-258.07109402,0.00012986,2]
[339194335,1727285432833,-155.48,0.0001299,2]
[339194336,1727285432844,-155.48,0.0001299,2]
[339194337,1727285432855,-155.48,0.0001299,2]
[339194338,1727285432866,-155.48,0.0001299,2]
[339194339,1727285432876,-155.48,0.0001299,2]
[339194340,1727285432887,-155.48,0.0001299,2]
[339194341,1727285432897,-155.48,0.0001299,2]
[339194342,1727285432908,-155.48,0.0001299,2]
[339194343,1727285432919,-155.48,0.0001299,2]
[339194344,1727285432930,-155.48,0.0001299,2]
[339194345,1727285432941,-159.39020911,0.0001299,2]
[339194346,1727285432952,-1228.2789921,0.00012996,2]
[339194347,1727285432963,-1930.8836827,0.00012996,2]
[339194348,1727285432977,-254.8641944,0.00012999,2]
[339194349,1727285432987,-500.0,0.00012999,2]
[339194350,1727285432998,-500.0,0.00012999,2]
[339194351,1727285433008,-199.81610151,0.00012999,2]
[339194352,1727285433019,-500.0,0.00012999,2]
[339194353,1727285433029,-500.0,0.00012999,2]
[339194354,1727285433041,-422.33774886,0.00012999,2]
[339194355,1727285433053,-500.0,0.00012999,2]
[339194356,1727285433064,-4702.0,0.00012999,2]
[339194357,1727285433074,-518.0,0.00013,2]
[339194358,1727285433085,-324536.28966288,0.00013,2]
[339194359,1727285433096,-29031.38615325,0.00013,2]
[339194360,1727285433110,-271.96394405,0.00013,2]
[339194361,1727285433123,-31725.35999999,0.00013,2]
[339194362,1727285433140,-1452.0,0.00013,2]
[339194363,1727285433153,-1947.2218158,0.00013,2]
[339194364,1727285433172,-2807.56799259,0.00013,2]
[339194365,1727285433185,-10349.97599785,0.00013,2]
[339194366,1727285433198,-3377.03584135,0.00013,2]
[339194370,1727285437683,-1893.1272692,0.00013,2]
[339194371,1727285437695,-659.75132017,0.00013,2]
[339194372,1727285437706,-22590.85096767,0.00013,2]
[339194373,1727285437913,-3885625.7369853,0.00013,2]
[339194374,1727285437925,-541.35277601,0.00013,2]
[339194375,1727285437944,-1294.79148476,0.00013,2]
[339194376,1727285437955,-3962.55749776,0.00013,2]
[339194377,1727285437966,-3110.01716113,0.00013,2]
[339194378,1727285437978,-799.5914014,0.00013,2]
[339194379,1727285437988,-5241.13075619,0.00013,2]
[339194380,1727285437999,-888.51999758,0.00013,2]
[339194381,1727285438010,-80264.27018146,0.00013,2]
[339194382,1727285438021,-284.7715908,0.00013,2]
[339194383,1727285438031,-69959.40566592,0.00013,2]
[339194384,1727285438043,-2757.58727979,0.00013,2]
[339194385,1727285438057,-187939.27379113,0.00013,2]
[339194386,1727285438068,-433.92059269,0.00013,2]
[339194387,1727285438079,-500.0,0.00013,2]
[339194388,1727285438090,-5740.77834692,0.00013,2]
[339194389,1727285438101,-733.57256847,0.00013,2]
[339194390,1727285438112,-1524.64822492,0.00013,2]
[339194391,1727285438122,-475.24399367,0.00013,2]
[339194392,1727285438135,-86766.99505788,0.00013,2]
[339194393,1727285438146,-612.18240239,0.00013,2]
[339194394,1727285438157,-3256.75155269,0.00013,2]
[339194395,1727285438168,-7488.18136091,0.00013,2]
[339194396,1727285438180,-5753.238706,0.00013,2]
[339194397,1727285438191,-313.27,0.00013,2]
[339194398,1727285438204,-254.99999,0.00013,2]
[339194399,1727285438216,-743.69812316,0.00013,2]
[339194400,1727285438229,-597.24,0.00013,2]
[339194401,1727285438239,-471.39155754,0.00013,2]
[339194402,1727285438250,-765.41975306,0.00013,2]
[339194403,1727285438261,-410.70213987,0.00013,2]
[339194412,1727285439482,-28332.41412583,0.00013,2]
[339194414,1727285439494,-1043.7472591,0.00013,2]
[339194415,1727285439567,-530.86535505,0.00013,2]
[339194416,1727285439658,-1901017.07920527,0.00013,2]
[339194417,1727285439669,-121795.72691659,0.00013,2]
[339194418,1727285439681,-1422.21779251,0.00013,2]
[339194419,1727285439692,-373.56117198,0.00013,2]
[339194420,1727285439703,-1864.77512759,0.00013,2]
[339194421,1727285439743,-5941.76094401,0.00013,2]
[339194422,1727285439754,-10893.97960102,0.00013,2]
[339194423,1727285439766,-250.0,0.00013,2]
[339194424,1727285439779,-255.42348,0.00013,2]
[339194425,1727285439790,-279142.77628386,0.00013,2]
[339194427,1727285439802,-597.01017384,0.00013,2]
[339194429,1727285439814,-1539.41274403,0.00013,2]
[339194709,1727285442604,-264.10704983,0.00013,2]
[339194711,1727285442617,-1000.0,0.00013,2]
[339194721,1727285442688,-38532.7306735,0.00013,2]
[339194723,1727285442699,-8679.59506081,0.00013,2]
[339194725,1727285442711,-277.876872,0.00013,2]
[339194727,1727285442722,-1504.9844153,0.00013,2]
[339194729,1727285442735,-267.9483656,0.00013,2]
[339194734,1727285442771,-610.20934057,0.00013,2]
[339194743,1727285442853,-5350.19999999,0.00013,2]
[339194746,1727285442865,-360.30066152,0.00013,2]
[339194748,1727285442876,-4078.9714258,0.00013,2]
[339194750,1727285442888,-400.30481951,0.00013,2]
[339194752,1727285442899,-1511.21766666,0.00013,2]
[339194754,1727285442910,-445.70504057,0.00013,2]
[339194756,1727285442921,-4675.74706937,0.00013,2]
[339194758,1727285442933,-1605.35180376,0.00013,2]
[339194760,1727285442944,-411.7493109,0.00013,2]
[339194763,1727285442955,-1377.74172289,0.00013,2]
[339194765,1727285442966,-1262.185602,0.00013,2]
[339194767,1727285442978,-8748.41568761,0.00013,2]
[339194769,1727285442990,-6160.50534124,0.00013,2]
[339194772,1727285443002,-752.24681455,0.00013,2]
[339194774,1727285443013,-500.23429319,0.00013,2]
[339194861,1727285445538,-432.5,0.00013,2]
[339194862,1727285445550,-353.79176405,0.00013,2]
[339194863,1727285445562,-4545.31242003,0.00013,2]
[339194864,1727285445573,-1834.85362429,0.00013,2]
[339194865,1727285445588,-8823.4074474,0.00013,2]
[339194866,1727285445599,-80252.54449587,0.00013,2]
[339194867,1727285445610,-310.805,0.00013,2]
[339194868,1727285445621,-539.53645481,0.00013,2]
[339194869,1727285445633,-633.18255,0.00013,2]
[339194870,1727285445644,-1458.83968283,0.00013,2]
[339194871,1727285445656,-409.14193754,0.00013,2]
[339194872,1727285445667,-4666.27831828,0.00013,2]
[339194873,1727285445678,-295.25514135,0.00013,2]
[339194874,1727285445689,-2660.46376001,0.00013,2]
[339194875,1727285445700,-717.12394233,0.00013,2]
[339194876,1727285445712,-6882.92088896,0.00013,2]
[339194877,1727285445723,-21737.36098335,0.00013,2]
[339194878,1727285445737,-292.80999874,0.00013,2]
[339194879,1727285445748,-31264.86811485,0.00013,2]
[339194880,1727285445759,-1216.07779227,0.00013,2]
[339194881,1727285445770,-264.56933083,0.00013,2]
[339194882,1727285445827,-383.87296915,0.00013,2]
[339194883,1727285445842,-306523.52493484,0.00013,2]
[339194884,1727285445853,-1529.65936875,0.00013,2]
[339194885,1727285445865,-2600.0,0.00013,2]
[339194886,1727285445880,-3648.9525255,0.00013,2]
[339194887,1727285445891,-2479.97084612,0.00013,2]
[339194888,1727285445902,-594.96858718,0.00013,2]
[339194889,1727285445913,-6048.65000081,0.00013,2]
[339194890,1727285445924,-39196.10025195,0.00013,2]
[339194891,1727285445937,-390.67842279,0.00013,2]
[339194892,1727285445949,-5999.60795184,0.00013,2]
[339194893,1727285445960,-105079.341644,0.00013,2]
[339194894,1727285445975,-4283.74000465,0.00013,2]
[339194895,1727285445988,-450.48960204,0.00013,2]
[339194896,1727285446003,-431.22961645,0.00013,2]
[339194897,1727285446014,-648.975,0.00013,2]
[339194898,1727285446025,-793.6875,0.00013,2]
[339194899,1727285446036,-4416.59540042,0.00013,2]
[339194900,1727285446052,-6172.81784563,0.00013,2]
[339194902,1727285446063,-8492.80634929,0.00013,2]
[339194908,1727285456889,192.4,0.00010959,2]
[339194909,1727285460488,500.0,0.00010164,2]
[339194917,1727285602328,1050.0,0.00011,2]
[339194919,1727285812360,398.17,9.899e-05,2]
[339194920,1727285894244,156.67,0.00013918,30]
[339194922,1727286047027,1000.0,0.00021,60]
[339194923,1727286057823,291.18,0.00010959,2]
[339194924,1727286096596,252.34,0.00010959,2]
[339194927,1727286167759,229.86,9.589e-05,2]
[339194928,1727286187182,173.01,9.143e-05,2]
[339194932,1727286427272,704.8,9.293e-05,2]
[339194934,1727286477169,176.44679914,0.00011044,2]
[339194935,1727286498225,492.630278,0.00011088,2]
[339194937,1727286573044,451.47,0.00011059,2]
[339194938,1727286602357,250.0,0.00011083,2]
[339194939,1727286602975,289.21636165,0.00011088,2]
[339194940,1727286605112,170.56,0.00011088,2]
[339194941,1727286631061,175.45,0.00010959,2]
[339194958,1727286631664,-250.0,0.00011144,2]
[339194961,1727286631673,-250.0,0.00011184,2]
[339194964,1727286631682,-200.0,0.00011283,2]
[339194966,1727286631695,-2486.70346721,0.00011293,2]
[339194968,1727286631706,-4740.28087054,0.00011293,2]
[339194969,1727286631715,-804.48,0.00011303,2]
[339194971,1727286631724,-4900.47169907,0.00011303,2]
[339194972,1727286631939,-549.52917014,0.00011303,2]
[339194973,1727286631950,-9367.06642511,0.00011303,2]
[339194974,1727286631960,-7171.924979,0.00011303,2]
[339194975,1727286631971,-1412.14945512,0.00011303,2]
[339194976,1727286631982,-2045.75766083,0.00011303,2]
[339194977,1727286631993,-24553.10061073,0.00011303,2]
[339194978,1727286632002,-150.0,0.00011306,2]
[339194979,1727286632011,-424.92,0.00011321,2]
[339194981,1727286632020,-500.0,0.00011331,2]
[339194982,1727286632029,-150.0,0.00011342,2]
[339194983,1727286632039,-150.99,0.00011342,2]
[339194984,1727286632048,-3284.88,0.00011372,2]
[339194985,1727286632057,-2526.42,0.00011372,2]
[339194986,1727286632067,-1046.36483644,0.00011378,2]
[339194987,1727286632076,-23900.0,0.00011379,2]
[339194988,1727286632085,-601.0,0.00011379,2]
[339194989,1727286632095,-150.0,0.00011425,2]
[339194990,1727286632104,-499.99,0.00011425,2]
[339194991,1727286632113,-156.39,0.00011428,2]
[339194992,1727286632123,-401.09,0.00011521,2]
[339194993,1727286632132,-175.38,0.00011532,2]
[339194994,1727286632141,-704.8,0.00011557,2]
[339194995,1727286632151,-223.8937913,0.00011688,2]
[339194996,1727286632161,-170.10989544,0.00011688,2]
[339194997,1727286632171,-395.33,0.00011817,2]
[339194998,1727286632180,-247.03,0.00011817,2]
[339194999,1727286632190,-3630.77,0.00011844,2]
[339195000,1727286632199,-1663.49931422,0.00012031,2]
[339195001,1727286632208,-229.86,0.00012055,2]
[339195002,1727286632217,-1000.0,0.00012111,2]
[339195003,1727286632227,-188.73,0.00012217,2]
[339195004,1727286632236,-422.61,0.00012241,2]
[339195005,1727286632247,-753.56,0.00012241,2]
[339195006,1727286632256,-255.0,0.00012358,2]
[339195007,1727286632265,-150.01,0.00012378,2]
[339195008,1727286632274,-358.17,0.00012378,2]
[339195009,1727286632283,-839.24,0.00012378,2]
[339195010,1727286632292,-358.17,0.00012378,2]
[339195011,1727286632301,-358.17,0.00012378,2]
[339195012,1727286632311,-358.17,0.00012378,2]
[339195013,1727286632319,-358.17,0.00012378,2]
[339195014,1727286632329,-358.17,0.00012378,2]
[339195015,1727286632337,-358.17,0.00012378,2]
[339195016,1727286632346,-358.17,0.00012378,2]
[339195017,1727286632355,-358.17,0.00012378,2]
[339195018,1727286632365,-1689.48,0.00012382,2]